fUSD/lending_fUSD_20250904
["ID","MTS","AMOUNT","RATE_DAILY","PERIOD"]
[383543750,1756984238177,-4584.88166863,0.00020501,2]
[383543752,1756984238187,-5528.83,0.00020548,2]
[383543754,1756984238197,-151.86,0.00020558,2]
[383543756,1756984238206,-406.75578,0.0002058,2]
[383543758,1756984238216,-406.75578,0.0002058,2]
[383543760,1756984238226,-406.75578,0.0002058,2]
[383543763,1756984238236,-406.75578,0.0002058,2]
[383543764,1756984238245,-406.75578,0.0002058,2]
[383543766,1756984238255,-406.75578,0.0002058,2]
[383543769,1756984238265,-200.0,0.00020594,2]
[383543771,1756984238275,-626.54083733,0.00020599,5]
[383543773,1756984238284,-2070.38541441,0.00020599,5]
[383543775,1756984238296,-11117.39991846,0.00020599,5]
[383543929,1756984239838,-1662.7495301,0.00020599,5]
[383543956,1756984240099,-356.3825,0.00020599,5]
[383544270,1756984244376,-1430.07539545,0.00020599,5]
[383544276,1756984244430,-2760.84525355,0.00020599,5]
[383544380,1756984246060,-2239.17373235,0.00020599,5]
[383544383,1756984246072,-9193.60000003,0.00020599,5]
[383544385,1756984246087,-4521.01417945,0.00020599,5]
[383544391,1756984246113,-18895.14247125,0.00020599,5]
[383544393,1756984246122,-821.80339279,0.000206,2]
[383544398,1756984246167,-2965.32,0.000206,2]
[383544512,1756984389786,500.0,0.00030136,120]
[383544513,1756984390651,169.09,9.922e-05,2]
[383544514,1756984390854,169.09,0.00014884,2]
[383544515,1756984399942,500.0,0.00030136,120]
[383544516,1756984810721,-160.0,0.0001962,7]
[383544517,1756984810743,-1840.0,0.00019633,3]
[383544518,1756984810779,-150.0,0.00019479,2]
[383544519,1756984810809,-300.0,0.00019549,2]
[383544520,1756984810833,-300.0,0.00019627,2]
[383544521,1756984810855,-160.0,0.00019633,3]
[383544522,1756984810879,-500.0,0.00019646,2]
[383544523,1756984810899,-300.0,0.00019652,2]
[383544524,1756984810920,-156.48,0.00019671,2]
[383544525,1756984810942,-1710.46968528,0.00019689,3]
[383544526,1756984811009,-289.53031472,0.00019689,3]
[383544527,1756984811030,-500.0,0.0001975,2]
[383544528,1756984811050,-410.46968528,0.00019757,2]
[383544529,1756984811079,-789.53031472,0.00019757,2]
[383544530,1756984811099,-1857.68340758,0.00019758,2]
[383544531,1756984811128,-642.31659242,0.00019758,2]
[383544532,1756984811427,-169.09,0.00019845,2]
[383544533,1756984811448,-300.0,0.00019853,2]
[383544534,1756984811469,-300.0,0.00019853,2]
[383544535,1756984811489,-4940.55340758,0.00019854,2]
[383544536,1756984811665,-211.0,0.00019854,2]
[383544537,1756984811737,-1200.40659242,0.00019854,2]
[383544538,1756984811758,-799.59340758,0.0001987,2]
[383544539,1756984811801,-211.0,0.0001987,2]
[383544540,1756984811857,-211.0,0.0001987,2]
[383544541,1756984811893,-281.91659242,0.0001987,2]
[383544542,1756984816426,-996.49,0.0001987,2]
[383544543,1756984816449,-281.91659242,0.00019904,2]
[383544544,1756984816470,-721.59340758,0.00019904,2]
[383544545,1756984816502,-171.36659242,0.00019904,2]
[383544546,1756984816626,-211.0,0.00020193,2]
[383544547,1756984816648,-169.22,0.00020271,2]
[383544548,1756984816670,-211.0,0.00020271,2]
[383544549,1756984816690,-583.0,0.00020356,2]
[383544550,1756984816711,-211.0,0.00020365,2]
[383544551,1756984816732,-1261.9937223,0.0002037,2]
[383544552,1756984816875,-211.0,0.0002037,2]
[383544553,1756984816923,-211.0,0.0002037,2]
[383544554,1756984829138,-963.22,0.0002037,2]
[383544555,1756984829183,-211.0,0.00020386,2]
[383544556,1756984829205,-211.0,0.0002042,2]
[383544557,1756984829227,-211.0,0.00020458,2]
[383544558,1756984829247,-1367.0,0.000205,2]
[383544559,1756984829289,-633.0,0.000205,2]
[383544560,1756984829311,-10101.8035059,0.00020545,2]
[383544561,1756984829333,-330.93,0.00020558,2]
[383544562,1756984829357,-292.36741498,0.00020588,2]
[383544563,1756984829379,-267.46074303,0.00020588,2]
[383544564,1756984829401,-466.9080474,0.00020588,2]
[383544565,1756984829423,-151.0,0.00020588,2]
[383544566,1756984829444,-200.0,0.00020588,2]
[383544567,1756984829464,-334.5472959,0.00020588,2]
[383544568,1756984829486,-1480.74598558,0.000206,2]
[383544570,1756984867466,1712.28350131,0.00020555,2]
[383544571,1756984867487,330.93,0.00020555,2]
[383544574,1756984880889,213.47,0.00013699,2]
[383544575,1756984881118,213.47,0.00020187,2]
[383544576,1756984885219,2500.0,0.000205,2]
[383544577,1756984885545,2500.0,0.000205,2]
[383544579,1756984924913,2000.0,0.00022611,120]
[383544580,1756984925072,2000.0,0.00020577,120]
[383544581,1756984925231,2000.0,0.00020608,120]
[383544582,1756984934839,250.0,0.00019846,2]
[383544583,1756984966957,587.0,0.000201,2]
[383544584,1756984999123,500.0,0.00030136,120]
[383544585,1756985005362,677.3,0.00030137,120]
[383544586,1756985024483,176.99936,0.0002039,2]
[383544587,1756985045153,2000.0,0.00022603,120]
[383544588,1756985046087,2000.0,0.00020551,120]
[383544589,1756985046141,2000.0,0.00020566,120]
[383544591,1756985108678,3660.8641459,0.0002,2]
[383544592,1756985108700,211.0,0.0002,2]
[383544593,1756985108726,211.0,0.0002,2]
[383544594,1756985108748,211.0,0.0002,2]
[383544595,1756985108771,583.0,0.0002,2]
[383544596,1756985108792,211.0,0.0002,2]
[383544597,1756985108814,39.63340758,0.0002,2]
[383544598,1756985164032,2000.0,0.00022,120]
[383544599,1756985164221,2000.0,0.00020274,120]
[383544600,1756985164402,2000.0,0.00020445,120]
[383544601,1756985181952,225.65,0.00019747,2]
[383544602,1756985182841,225.65,0.00024684,120]
[383544603,1756985182884,225.65,0.00027153,120]
[383544604,1756985182930,225.65,0.00029621,120]
[383544606,1756985206919,340.4,0.00030136,120]
[383544607,1756985247504,340.42843656,0.00030136,120]
[383544608,1756985257174,500.0,0.00030136,120]
[383544610,1756985291486,2000.0,0.00021999,120]
[383544611,1756985291642,2000.0,0.0002,120]
[383544612,1756985291793,2000.0,0.00020287,120]
[383544621,1756985334588,56.26659242,0.00019742,2]
[383544622,1756985334612,658.09340758,0.00019742,2]
[383544626,1756985369776,5693.86659242,0.00019429,7]
[383544627,1756985369796,600.0,0.00019429,7]
[383544628,1756985369816,600.0,0.00019429,7]
[383544629,1756985369836,2500.0,0.00019429,7]
[383544630,1756985369856,2500.0,0.00019429,7]
[383544631,1756985369877,1200.0,0.00019429,7]
[383544632,1756985369897,500.0,0.00019429,7]
[383544633,1756985369916,500.0,0.00019429,7]
[383544634,1756985369936,300.0,0.00019429,7]
[383544635,1756985369957,300.0,0.00019429,7]
[383544636,1756985369978,500.0,0.00019429,7]
[383544637,1756985370000,2000.0,0.00019429,7]
[383544638,1756985370020,300.0,0.00019429,7]
[383544639,1756985370040,106.15638005,0.00019429,7]
[383544646,1756985410561,2000.0,0.00021999,120]
[383544647,1756985410849,2000.0,0.00019999,120]
[383544648,1756985410998,2000.0,0.00020066,120]
[383544657,1756985432213,-300.0,0.00019999,2]
[383544658,1756985432223,-117.15812675,0.00019999,2]
[383544668,1756985432565,-182.84187325,0.00019999,2]
[383544669,1756985432576,-1200.0,0.00019999,2]
[383544670,1756985432587,-300.0,0.0002,2]
[383544671,1756985432598,-500.0,0.0002,2]
[383544672,1756985432610,-26895.71674009,0.0002,2]
[383544673,1756985432626,-923.93279792,0.0002,2]
[383544674,1756985432714,-5704.59136163,0.0002,2]
[383544675,1756985432724,-300.0,0.00020331,2]
[383544676,1756985432734,-835.25950844,0.00020548,2]
[383544682,1756985432816,-372.13254803,0.00020548,2]
[383544711,1756985438037,-1154.08880777,0.00020548,2]
[383545184,1756985443416,-3815.39913576,0.00020548,2]
[383545187,1756985443426,-3444.54086424,0.0002055,2]
[383545481,1756985446426,-512.58687998,0.0002055,2]
[383546168,1756985498975,193.84361995,0.000191,2]
[383546169,1756985505416,-164.19698735,0.000191,2]
[383546171,1756985526005,-200.0,0.000191,2]
[383546173,1756985544163,-17.9593927,0.000191,2]
[383546174,1756985544240,-364.0812146,0.00019248,2]
[383546175,1756985544690,160.07,9.84e-05,2]
[383546176,1756985600162,500.0,0.00030136,120]
[383546177,1756985651747,-135.9187854,0.00019248,2]
[383546178,1756985651792,-128.1624292,0.00019321,2]
[383546179,1756985659045,-28.1624292,0.00019321,2]
[383546180,1756985659067,-143.6751416,0.00019321,2]
[383546181,1756985666488,-167.10586252,0.00019321,2]
[383546188,1756985840779,200.01,0.00013699,2]
[383546189,1756985849043,1993.81205,0.00030136,120]
[383546190,1756985888835,-27.89413748,0.00019321,2]
[383546191,1756985888875,-144.21172504,0.00019358,2]
[383546192,1756985923598,-160.0,0.00019681,7]
[383546193,1756986011614,2000.0,0.00019442,3]
[383546194,1756986141442,500.0,0.00030136,120]
[383546195,1756986156193,492.49,0.00026602,120]
[383546196,1756986156366,492.49,0.00029021,120]
[383546197,1756986165801,-400.0,0.00019347,2]
[383546212,1756986201075,500.0,0.00030136,120]
[383546213,1756986216779,-166.44706874,0.00019192,2]
[383546214,1756986242261,1034.0,0.00030137,120]
[383546215,1756986256468,-33.55293126,0.00019192,2]
[383546216,1756986256507,-132.89413748,0.0001927,2]
[383546218,1756986264261,-101.10897792,0.0001927,2]
[383546219,1756986264286,-65.9968846,0.0001927,2]
[383546222,1756986272123,-92.49,0.00019347,2]
[383546223,1756986272284,-22.85907511,0.00019348,2]
[383546224,1756986293298,159.0,0.0002,30]
[383546225,1756986312940,-122.85907511,0.00019348,2]
[383546226,1756986312981,-154.28184978,0.00019348,2]
[383546227,1756986319978,-400.0,0.00019369,2]
[383546228,1756986442601,935.15956288,0.00019,20]
[383546229,1756986451573,1000.0,0.00030137,120]
[383546230,1756986463268,1000.0,0.00030137,120]
[383546231,1756986471314,1000.0,0.00030137,120]
[383546232,1756986479338,1000.0,0.00030137,120]
[383546233,1756986484631,2000.0,0.00019358,3]
[383546234,1756986486303,1000.0,0.00030137,120]
[383546235,1756986492364,-171.8,0.00019347,2]
[383546236,1756986492412,-56.4,0.00019358,2]
[383546237,1756986495063,1000.0,0.00030137,120]
[383546238,1756986500006,-400.0,0.00019358,2]
[383546239,1756986506792,1000.0,0.00030137,120]
[383546240,1756986514870,1000.0,0.00030137,120]
[383546241,1756986525375,160.0,0.00019298,7]
[383546242,1756986528909,1035.9,0.00030137,120]
[383546243,1756986573124,-400.0,0.00019,2]
[383546244,1756986595376,159.97,9.586e-05,2]
[383546245,1756986632304,-164.0,0.00019,2]
[383546246,1756986632314,-43.6,0.00019358,2]
[383546247,1756986632324,-300.0,0.00019358,2]
[383546248,1756986632334,-272.42033603,0.00019361,2]
[383546249,1756986632344,-171.48,0.00019369,2]
[383546250,1756986632354,-300.0,0.00019377,2]
[383546251,1756986632365,-250.0,0.00019384,2]
[383546252,1756986632375,-156.48,0.00019528,2]
[383546255,1756986632638,-608.0,0.00019534,2]
[383546256,1756986632652,-244.34,0.00019562,2]
[383546257,1756986632661,-300.0,0.00019676,2]
[383546258,1756986632670,-300.0,0.00019676,2]
[383546259,1756986632680,-1200.0,0.00019676,2]
[383546260,1756986632689,-300.0,0.00019676,2]
[383546261,1756986632698,-151.0,0.00019762,2]
[383546262,1756986632707,-635.88063787,0.00019762,2]
[383546263,1756986632716,-8142.12,0.00019762,2]
[383546264,1756986632726,-11950.54999004,0.00019762,2]
[383546265,1756986633137,-493.33320213,0.00019762,2]
[383546266,1756986633147,-3150.99809935,0.00019762,2]
[383546267,1756986633211,-166.44706874,0.00019368,2]
[383546268,1756986633220,-2339.85073536,0.00019762,2]
[383546269,1756986633291,-372.13254803,0.00019762,2]
[383546271,1756986638127,-687.08,0.00019368,2]
[383546272,1756986638137,-397.36542509,0.00019762,2]
[383546273,1756986638146,-24810.32,0.00019762,2]
[383546274,1756986638155,-500.0,0.00019863,2]
[383546275,1756986638165,-151.0,0.00019891,2]
[383546276,1756986638174,-200.0,0.00019891,2]
[383546277,1756986638184,-151.0,0.00019891,2]
[383546278,1756986638193,-267.46074303,0.00019891,2]
[383546279,1756986638203,-200.0,0.00019891,2]
[383546280,1756986638212,-215.31,0.000199,2]
[383546281,1756986638221,-166.53,0.00019978,2]
[383546282,1756986638230,-817.41,0.0002,2]
[383546283,1756986638240,-166.53,0.0002,2]
[383546284,1756986638249,-150.0,0.0002,2]
[383546285,1756986638260,-166.53,0.0002,2]
[383546286,1756986638269,-166.53,0.0002,2]
[383546287,1756986638283,-301.15,0.00020078,2]
[383546288,1756986638292,-311.45,0.00020078,2]
[383546289,1756986638301,-150.0,0.00020078,2]
[383546290,1756986638312,-1188.56,0.00020078,2]
[383546291,1756986638321,-348.26,0.00020078,2]
[383546292,1756986638330,-166.53,0.00020078,2]
[383546293,1756986638339,-409.65,0.00020078,2]
[383546294,1756986638348,-150.0,0.00020078,2]
[383546295,1756986638358,-150.0,0.00020078,2]
[383546296,1756986638367,-150.0,0.00020078,2]
[383546297,1756986638376,-313.27041867,0.000201,5]
[383546298,1756986638384,-409.65,0.000201,2]
[383546299,1756986638394,-541.14,0.000201,2]
[383546300,1756986638404,-1602.08,0.000201,2]
[383546301,1756986638414,-150.0,0.000201,2]
[383546302,1756986638424,-150.0,0.000201,2]
[383546303,1756986638437,-166.53,0.000201,2]
[383546304,1756986638446,-470.45,0.000201,2]
[383546306,1756986638455,-541.14,0.000201,2]
[383546308,1756986638465,-409.65,0.000201,2]
[383546310,1756986638474,-1323.60686115,0.0002016,2]
[383546311,1756986638483,-553.0,0.0002018,2]
[383546312,1756986638492,-200.01,0.00020187,2]
[383546313,1756986638501,-151.0,0.00020193,2]
[383546314,1756986638510,-151.0,0.00020193,2]
[383546315,1756986638519,-151.0,0.00020193,2]
[383546316,1756986638528,-151.0,0.00020193,2]
[383546317,1756986638538,-151.0,0.00020193,2]
[383546318,1756986638547,-2756.9562159,0.00020214,2]
[383546319,1756986638557,-279.77182506,0.00020254,2]
[383546320,1756986638565,-2200.0,0.00020273,2]
[383546321,1756986638574,-800.0,0.00020273,2]
[383546322,1756986638583,-27285.62947333,0.00020274,5]
[383546324,1756986638592,-300.0,0.00020274,2]
[383546326,1756986638601,-342.76,0.00020274,2]
[383546328,1756986638611,-2000.0,0.000203,2]
[383546330,1756986638620,-571.48,0.00020337,2]
[383546332,1756986638629,-176.99936,0.0002037,2]
[383546334,1756986638638,-176.99936,0.0002037,2]
[383546336,1756986638648,-150.0,0.0002039,2]
[383546338,1756986638657,-150.0,0.0002039,2]
[383546340,1756986638667,-150.0,0.0002039,2]
[383546342,1756986638676,-200.0,0.0002039,2]
[383546344,1756986638685,-150.0,0.0002039,2]
[383546346,1756986638695,-150.0,0.0002039,2]
[383546348,1756986638704,-150.0,0.0002039,2]
[383546350,1756986638713,-500.0,0.0002039,2]
[383546352,1756986638722,-150.0,0.0002039,2]
[383546354,1756986638734,-150.0,0.0002039,2]
[383546356,1756986638743,-150.0,0.0002039,2]
[383546358,1756986638754,-500.0,0.0002039,2]
[383546360,1756986638763,-150.0,0.0002039,2]
[383546362,1756986638772,-567.0,0.0002039,2]
[383546364,1756986638781,-150.0,0.0002039,2]
[383546366,1756986638790,-150.0,0.0002039,2]
[383546368,1756986638799,-500.0,0.0002039,2]
[383546370,1756986638809,-150.0,0.0002039,2]
[383546372,1756986638818,-500.0,0.0002039,2]
[383546373,1756986638828,-500.0,0.0002039,2]
[383546375,1756986638837,-500.0,0.0002039,2]
[383546377,1756986638846,-150.0,0.0002039,2]
[383546379,1756986638855,-150.0,0.0002039,2]
[383546381,1756986638865,-150.0,0.0002039,2]
[383546383,1756986638874,-1188.56,0.000204,2]
[383546385,1756986638884,-150.0,0.000204,2]
[383546387,1756986638894,-150.0,0.000204,2]
[383546389,1756986638903,-166.53,0.000204,2]
[383546391,1756986638912,-541.14,0.000204,2]
[383546393,1756986638921,-352.93,0.000204,2]
[383546395,1756986638931,-409.65,0.000204,2]
[383546397,1756986638941,-540.79,0.000204,2]
[383546400,1756986638952,-409.38,0.000204,2]
[383546402,1756986638962,-166.53,0.000204,2]
[383546404,1756986638971,-541.14,0.000204,2]
[383546406,1756986638980,-166.53,0.000204,2]
[383546407,1756986638989,-150.0,0.000204,2]
[383546409,1756986638999,-1188.56,0.000204,2]
[383546436,1756986639239,-409.65,0.000204,2]
[383546438,1756986639251,-151.0,0.000204,2]
[383546440,1756986639260,-151.0,0.000204,2]
[383546442,1756986639269,-151.0,0.000204,2]
[383546444,1756986639284,-151.0,0.000204,2]
[383546446,1756986639293,-151.0,0.00020439,2]
[383546448,1756986639303,-339.17553123,0.00020439,2]
[383546450,1756986639314,-151.0,0.0002045,2]
[383546453,1756986639324,-151.0,0.0002045,2]
[383546455,1756986639333,-151.0,0.0002045,2]
[383546457,1756986639343,-151.0,0.0002045,2]
[383546459,1756986639353,-12537.23301003,0.00020499,2]
[383546461,1756986639363,-1000.0,0.000205,2]
[383546463,1756986639374,-500.0,0.000205,2]
[383546465,1756986639383,-150.0,0.000205,2]
[383546467,1756986639392,-2500.0,0.000205,2]
[383546469,1756986639402,-151.0,0.000205,2]
[383546471,1756986639411,-151.0,0.000205,2]
[383546473,1756986639422,-151.0,0.000205,2]
[383546475,1756986639431,-195.992058,0.000205,2]
[383546476,1756986639441,-150.0,0.00020527,2]
[383546478,1756986639451,-150.0,0.00020527,2]
[383546480,1756986639461,-150.0,0.00020527,2]
[383546482,1756986639471,-150.0,0.00020527,2]
[383546484,1756986639480,-500.0,0.00020527,2]
[383546487,1756986639491,-150.0,0.00020527,2]
[383546488,1756986639500,-150.0,0.00020527,2]
[383546490,1756986639509,-286.99789271,0.00020527,2]
[383546492,1756986639518,-500.0,0.00020527,2]
[383546494,1756986639527,-150.0,0.00020527,2]
[383546496,1756986639536,-567.0,0.00020527,2]
[383546498,1756986639546,-150.0,0.00020527,2]
[383546500,1756986639555,-150.0,0.00020527,2]
[383546502,1756986639565,-500.0,0.00020527,2]
[383546504,1756986639574,-150.0,0.00020527,2]
[383546506,1756986639583,-500.0,0.00020527,2]
[383546508,1756986639592,-500.0,0.00020527,2]
[383546510,1756986639601,-510.59081125,0.00020527,2]
[383546512,1756986639611,-150.0,0.00020527,2]
[383546514,1756986639620,-269.34351326,0.00020527,2]
[383546516,1756986639630,-1715.83686399,0.00020535,2]
[383546518,1756986639639,-500.0,0.00020547,2]
[383546520,1756986639648,-176.99937,0.0002055,2]
[383546522,1756986639658,-176.99936,0.0002055,2]
[383546524,1756986639668,-2997.20269019,0.0002055,2]
[383546526,1756986639678,-14358.36318039,0.00020555,2]
[383546529,1756986639688,-151.0,0.00020555,2]
[383546530,1756986639698,-151.0,0.00020555,2]
[383546532,1756986639707,-151.0,0.00020555,2]
[383546534,1756986639717,-528.65794325,0.0002056,2]
[383546537,1756986639727,-1000.0,0.00020588,3]
[383546539,1756986639736,-1000.0,0.00020588,3]
[383546541,1756986639745,-1000.0,0.00020588,3]
[383546542,1756986639754,-1000.0,0.00020588,3]
[383546545,1756986639764,-1000.0,0.00020588,3]
[383546547,1756986639775,-1000.0,0.00020588,3]
[383546549,1756986639784,-1000.0,0.00020588,3]
[383546551,1756986639793,-1000.0,0.00020588,3]
[383546553,1756986639802,-1000.0,0.00020588,3]
[383546555,1756986639812,-1000.0,0.00020588,3]
[383546557,1756986639821,-514.64478986,0.00020588,3]
[383546559,1756986639830,-160.0,0.00020588,3]
[383546561,1756986639840,-212.59699798,0.00020588,3]
[383546562,1756986639849,-151.0,0.00020599,2]
[383546564,1756986639859,-1000.0,0.00020599,3]
[383546566,1756986639868,-1000.0,0.00020599,3]
[383546568,1756986639878,-1000.0,0.00020599,3]
[383546570,1756986639887,-1000.0,0.00020599,3]
[383546572,1756986639896,-81045.64275223,0.000206,2]
[383546574,1756986639906,-151.0,0.000206,2]
[383546576,1756986639915,-5305.652253,0.0002062,2]
[383546578,1756986639925,-151.0,0.00020631,2]
[383546580,1756986639934,-18991.0276,0.00020635,2]
[383546582,1756986639944,-151.0,0.00020637,2]
[383546584,1756986639953,-151.0,0.00020645,2]
[383546586,1756986639963,-151.0,0.00020649,2]
[383546588,1756986639972,-151.0,0.00020649,2]
[383546590,1756986639982,-200.0,0.00020664,2]
[383546592,1756986639991,-200.0,0.00020664,2]
[383546594,1756986640000,-200.0,0.00020664,2]
[383546596,1756986640010,-200.0,0.00020664,2]
[383546598,1756986640019,-500.0,0.00020664,2]
[383546600,1756986640028,-200.0,0.00020664,2]
[383546602,1756986640037,-200.0,0.00020664,2]
[383546604,1756986640047,-500.0,0.00020664,2]
[383546606,1756986640056,-209.34158003,0.00020664,2]
[383546608,1756986640065,-567.0,0.00020664,2]
[383546610,1756986640075,-265.97004853,0.00020664,2]
[383546612,1756986640084,-150.0,0.00020664,2]
[383546614,1756986640094,-500.0,0.00020664,2]
[383546616,1756986640104,-200.0,0.00020664,2]
[383546618,1756986640113,-500.0,0.00020664,2]
[383546620,1756986640122,-500.0,0.00020664,2]
[383546622,1756986640133,-150.0,0.00020664,2]
[383546624,1756986640142,-151.0,0.00020666,2]
[383546626,1756986640152,-221.03,0.00020677,2]
[383546628,1756986640163,-176.2756707,0.00020681,2]
[383546630,1756986640173,-22241.21426535,0.000207,2]
[383546632,1756986640188,-490.06907674,0.000207,2]
[383546634,1756986640198,-2997.17,0.000207,2]
[383546636,1756986640209,-357.0,0.000207,2]
[383546638,1756986640219,-357.0,0.00020749,2]
[383546640,1756986640228,-21573.06073564,0.0002075,2]
[383546642,1756986640239,-357.0,0.00020757,2]
[383546645,1756986640250,-238.25197267,0.00020774,2]
[383546646,1756986640261,-546.80410791,0.00020795,2]
[383546649,1756986640271,-800.0,0.000208,7]
[383546651,1756986640284,-500.0,0.00020801,2]
[383546653,1756986640294,-500.0,0.00020801,2]
[383546655,1756986640303,-567.0,0.00020801,2]
[383546657,1756986640314,-250.0,0.00020801,2]
[383546659,1756986640323,-500.0,0.00020801,2]
[383546661,1756986640334,-500.0,0.00020801,2]
[383546663,1756986640344,-189.38676028,0.00020801,2]
[383546665,1756986640353,-150.0,0.00020801,2]
[383546667,1756986640364,-211.0,0.00020812,2]
[383546669,1756986640373,-12537.23300996,0.00020832,2]
[383546671,1756986640383,-63904.66068185,0.0002085,2]
[383546673,1756986640392,-211.0,0.0002089,2]
[383546675,1756986640402,-211.0,0.00020894,2]
[383546677,1756986640411,-16512.23977405,0.000209,2]
[383546679,1756986640420,-500.0,0.000209,2]
[383546681,1756986640430,-300.0,0.000209,2]
[383546683,1756986640439,-1001.30156767,0.000209,2]
[383546685,1756986640449,-5000.0,0.000209,2]
[383546687,1756986640458,-1700.0,0.000209,7]
[383546689,1756986640468,-500.0,0.000209,2]
[383546690,1756986640477,-300.0,0.000209,2]
[383546691,1756986640487,-300.0,0.000209,2]
[383546692,1756986640496,-2500.0,0.000209,2]
[383546693,1756986640506,-195.0,0.000209,2]
[383546694,1756986640515,-357.0,0.00020905,2]
[383546695,1756986640524,-357.0,0.00020918,2]
[383546696,1756986640534,-500.0,0.00020938,2]
[383546697,1756986640543,-500.0,0.00020938,2]
[383546698,1756986640553,-567.0,0.00020938,2]
[383546699,1756986640562,-500.0,0.00020938,2]
[383546701,1756986640572,-552.59583468,0.00020938,2]
[383546703,1756986640581,-224.65605044,0.00020938,2]
[383546705,1756986640591,-549.39477046,0.00020973,2]
[383546707,1756986640601,-500.0,0.00020973,2]
[383546709,1756986640610,-501.71958142,0.00020973,2]
[383546711,1756986640619,-164.7719561,0.00020973,2]
[383546713,1756986640629,-500.0,0.00020973,2]
[383546715,1756986640638,-500.0,0.00020973,2]
[383546717,1756986640648,-500.0,0.00020973,2]
[383546719,1756986640658,-500.0,0.00020973,2]
[383546721,1756986640668,-500.0,0.00020973,2]
[383546723,1756986640678,-500.0,0.00020973,2]
[383546725,1756986640687,-500.0,0.00020973,2]
[383546727,1756986640698,-500.0,0.00020973,2]
[383546729,1756986640707,-500.0,0.00020973,2]
[383546731,1756986640717,-162.97116817,0.0002098,2]
[383546733,1756986640727,-151.0,0.00020987,2]
[383546735,1756986640737,-666.0,0.00020999,2]
[383546737,1756986640747,-300.0,0.00020999,2]
[383546739,1756986640756,-300.0,0.00020999,2]
[383546741,1756986640766,-666.0,0.00020999,2]
[383546743,1756986640775,-300.0,0.00020999,2]
[383546746,1756986640786,-300.0,0.00020999,2]
[383546748,1756986640795,-666.0,0.00020999,2]
[383546750,1756986640805,-300.0,0.00020999,2]
[383546751,1756986640816,-867.0,0.00021,2]
[383546753,1756986640826,-900.22754792,0.00021,2]
[383546755,1756986640836,-18977.50847356,0.00021,2]
[383546758,1756986640845,-1170.91591973,0.00021,2]
[383546760,1756986640855,-193.27002035,0.00021,2]
[383546761,1756986640865,-160.0,0.00021,7]
[383546763,1756986640875,-94039.36560988,0.00021,2]
[383546765,1756986640883,-176066.0,0.00021,2]
[383546767,1756986640893,-109390.66996575,0.00021,2]
[383546769,1756986640902,-200000.0,0.00021,2]
[383546771,1756986640911,-376.05949254,0.00021,2]
[383546773,1756986640920,-202.970294,0.00021,2]
[383546775,1756986640930,-21573.06073564,0.00021056,2]
[383546777,1756986640939,-500.0,0.00021075,2]
[383546779,1756986640949,-500.0,0.00021075,2]
[383546781,1756986640958,-567.0,0.00021075,2]
[383546783,1756986640967,-500.0,0.00021075,2]
[383546786,1756986640980,-357.0,0.0002108,2]